fUST/lending_fUST_20250901
["ID","MTS","AMOUNT","RATE_DAILY","PERIOD"]
[382568723,1756671039574,-1305.77,0.00016818,2]
[382568725,1756671039585,-1138.9,0.00016818,2]
[382568726,1756671039595,-480.0,0.00016818,2]
[382568727,1756671039605,-480.0,0.00016818,2]
[382568728,1756671039615,-480.0,0.00016818,2]
[382568730,1756671039625,-634.14,0.00016818,2]
[382568732,1756671039634,-480.0,0.00016818,2]
[382568734,1756671039644,-550.88,0.00016818,2]
[382568736,1756671039653,-480.0,0.00016818,2]
[382568737,1756671039662,-480.0,0.00016818,2]
[382568738,1756671039672,-480.0,0.00016818,2]
[382568740,1756671039681,-950.65,0.00016818,2]
[382568741,1756671039691,-692.89,0.00016818,2]
[382568743,1756671039700,-480.0,0.00016818,2]
[382568745,1756671039710,-480.0,0.00016818,2]
[382568747,1756671039719,-1000.0,0.00016818,2]
[382568749,1756671039729,-480.0,0.00016818,2]
[382568751,1756671039739,-480.0,0.00016818,2]
[382568753,1756671039750,-620.26436591,0.00016818,2]
[382568755,1756671039768,-80.32563409,0.00016818,2]
[382568756,1756671039778,-480.0,0.00016818,2]
[382568757,1756671039787,-346.01036991,0.00016818,2]
[382568758,1756671039799,-672.18963009,0.00016818,2]
[382568759,1756671039808,-480.0,0.00016818,2]
[382568760,1756671039817,-480.0,0.00016818,2]
[382568761,1756671039828,-480.0,0.00016818,2]
[382568762,1756671039837,-480.0,0.00016818,2]
[382568763,1756671039847,-480.0,0.00016818,2]
[382568764,1756671039857,-480.0,0.00016818,2]
[382568765,1756671039867,-480.0,0.00016818,2]
[382568766,1756671039876,-579.56,0.00016818,2]
[382568767,1756671039886,-480.0,0.00016818,2]
[382568768,1756671039895,-480.0,0.00016818,2]
[382568769,1756671039904,-480.0,0.00016818,2]
[382568770,1756671039914,-480.0,0.00016818,2]
[382568771,1756671039923,-480.0,0.00016818,2]
[382568772,1756671039933,-552.93,0.00016818,2]
[382568773,1756671039943,-480.0,0.00016818,2]
[382568774,1756671039952,-497.84,0.00016818,2]
[382568775,1756671039962,-480.0,0.00016818,2]
[382568776,1756671039972,-480.0,0.00016818,2]
[382568777,1756671039982,-480.0,0.00016818,2]
[382568778,1756671039994,-480.0,0.00016818,2]
[382568779,1756671040006,-480.0,0.00016818,2]
[382568780,1756671040015,-924.93,0.00016818,2]
[382568781,1756671040025,-942.82,0.00016818,2]
[382568782,1756671040036,-524.31,0.00016818,2]
[382568783,1756671040046,-480.0,0.00016818,2]
[382568784,1756671040056,-1191.87,0.00016818,2]
[382568785,1756671040065,-480.0,0.00016818,2]
[382568786,1756671040075,-480.0,0.00016818,2]
[382568787,1756671040084,-258.17961623,0.00016818,2]
[382568788,1756671040094,-480.0,0.00016818,2]
[382568789,1756671040104,-989.96,0.00016818,2]
[382568790,1756671040113,-480.0,0.00016818,2]
[382568791,1756671040123,-498.29,0.00016818,2]
[382568792,1756671040133,-480.0,0.00016818,2]
[382568793,1756671040142,-1100.19,0.00016818,2]
[382568794,1756671040151,-480.0,0.00016818,2]
[382568795,1756671040160,-875.87,0.00016818,2]
[382568796,1756671040170,-480.0,0.00016818,2]
[382568797,1756671040181,-1101.52,0.00016818,2]
[382568798,1756671040191,-356.36837268,0.00016818,2]
[382568799,1756671040201,-480.0,0.00016818,2]
[382568800,1756671040211,-962.25,0.00016818,2]
[382568801,1756671040220,-480.0,0.00016818,2]
[382568802,1756671040230,-480.0,0.00016818,2]
[382568803,1756671040239,-480.0,0.00016818,2]
[382568804,1756671040249,-782.08,0.00016818,2]
[382568805,1756671040260,-578.47,0.00016818,2]
[382568806,1756671040270,-1150.52,0.00016818,2]
[382568807,1756671040279,-480.0,0.00016818,2]
[382568808,1756671040288,-480.0,0.00016818,2]
[382568809,1756671040297,-1194.36,0.00016818,2]
[382568810,1756671040307,-1101.65,0.00016818,2]
[382568811,1756671040319,-480.0,0.00016818,2]
[382568812,1756671040329,-480.0,0.00016818,2]
[382568813,1756671040338,-2733.57,0.00016818,2]
[382568814,1756671040348,-480.0,0.00016818,2]
[382568815,1756671040357,-480.0,0.00016818,2]
[382568816,1756671040367,-626.94,0.00016818,2]
[382568817,1756671040377,-480.0,0.00016818,2]
[382568818,1756671040386,-480.0,0.00016818,2]
[382568819,1756671040396,-2085.34,0.00016818,2]
[382568820,1756671040406,-480.0,0.00016818,2]
[382568821,1756671040415,-434.75143549,0.00016818,2]
[382568822,1756671040424,-480.0,0.00016818,2]
[382568823,1756671040434,-480.0,0.00016818,2]
[382568824,1756671040443,-5338.07,0.00016818,2]
[382568825,1756671040452,-480.0,0.00016818,2]
[382568826,1756671040461,-605.2,0.00016818,2]
[382568827,1756671040471,-1044.89,0.00016818,2]
[382568828,1756671040481,-480.0,0.00016818,2]
[382568829,1756671040723,-1059.73,0.00016818,2]
[382568830,1756671040735,-1778.02,0.00016818,2]
[382568831,1756671040744,-480.0,0.00016818,2]
[382568832,1756671040754,-480.0,0.00016818,2]
[382568833,1756671040763,-480.0,0.00016818,2]
[382568835,1756671040773,-480.0,0.00016818,2]
[382568836,1756671040782,-1028.65,0.00016818,2]
[382568838,1756671040792,-619.53,0.00016818,2]
[382568839,1756671040801,-480.0,0.00016818,2]
[382568840,1756671040810,-480.0,0.00016818,2]
[382568841,1756671040819,-480.0,0.00016818,2]
[382568843,1756671040829,-1217.24,0.00016818,2]
[382568844,1756671040838,-480.0,0.00016818,2]
[382568846,1756671040847,-480.0,0.00016818,2]
[382568847,1756671040857,-596.58,0.00016818,2]
[382568848,1756671040867,-591.02,0.00016818,2]
[382568849,1756671040877,-499.41,0.00016818,2]
[382568851,1756671040886,-1252.17,0.00016818,2]
[382568853,1756671040896,-4088.69,0.00016818,2]
[382568855,1756671040906,-705.82,0.00016818,2]
[382568857,1756671040915,-257.29803267,0.00016818,2]
[382568859,1756671040924,-480.0,0.00016818,2]
[382568861,1756671040934,-480.0,0.00016818,2]
[382568862,1756671040943,-633.58,0.00016818,2]
[382568863,1756671040953,-480.0,0.00016818,2]
[382568864,1756671040962,-480.0,0.00016818,2]
[382568865,1756671040971,-804.74,0.00016818,2]
[382568866,1756671040982,-480.0,0.00016818,2]
[382568867,1756671040992,-480.0,0.00016818,2]
[382568868,1756671041001,-480.0,0.00016818,2]
[382568869,1756671041012,-480.0,0.00016818,2]
[382568870,1756671041021,-480.0,0.00016818,2]
[382568871,1756671041031,-480.0,0.00016818,2]
[382568872,1756671041041,-480.0,0.00016818,2]
[382568873,1756671041050,-504.63,0.00016818,2]
[382568874,1756671041059,-480.0,0.00016818,2]
[382568875,1756671041068,-893.23,0.00016818,2]
[382568876,1756671041078,-480.0,0.00016819,2]
[382568877,1756671041087,-1188.69,0.00016819,2]
[382568878,1756671041097,-838.4,0.00016819,2]
[382568879,1756671041107,-1235.25,0.00016819,2]
[382568880,1756671041117,-604.07,0.00016819,2]
[382568881,1756671041126,-480.0,0.00016819,2]
[382568882,1756671041135,-632.88,0.00016819,2]
[382568883,1756671041145,-480.0,0.00016819,2]
[382568884,1756671041154,-480.0,0.00016819,2]
[382568885,1756671041164,-784.94,0.00016819,2]
[382568886,1756671041173,-480.0,0.00016819,2]
[382568887,1756671041183,-678.61,0.00016819,2]
[382568888,1756671041192,-480.0,0.00016819,2]
[382568889,1756671041202,-480.0,0.00016819,2]
[382568890,1756671041211,-480.0,0.00016819,2]
[382568891,1756671041221,-963.03,0.00016819,2]
[382568892,1756671041231,-794.58,0.00016819,2]
[382568893,1756671041240,-480.0,0.00016819,2]
[382568894,1756671041249,-530.66,0.00016819,2]
[382568895,1756671041260,-480.0,0.00016819,2]
[382568896,1756671041269,-480.0,0.00016819,2]
[382568897,1756671041279,-901.65,0.00016819,2]
[382568898,1756671041288,-1583.33,0.00016819,2]
[382568899,1756671041298,-480.0,0.00016819,2]
[382568900,1756671041308,-165.47958596,0.00016819,2]
[382568901,1756671041322,-480.0,0.00016819,2]
[382568902,1756671041331,-480.0,0.00016819,2]
[382568903,1756671041341,-652.12,0.00016819,2]
[382568904,1756671041350,-480.0,0.00016819,2]
[382568905,1756671041361,-480.0,0.00016819,2]
[382568906,1756671041370,-480.0,0.00016819,2]
[382568907,1756671041380,-575.16,0.00016819,2]
[382568908,1756671041392,-480.0,0.00016819,2]
[382568909,1756671041401,-480.0,0.00016819,2]
[382568910,1756671041411,-692.11,0.00016821,2]
[382568911,1756671041421,-480.0,0.00016821,2]
[382568912,1756671041431,-427.78250325,0.00016821,2]
[382568913,1756671041440,-480.0,0.00016821,2]
[382568914,1756671041450,-500.0,0.00016821,2]
[382568915,1756671041459,-480.0,0.00016821,2]
[382568916,1756671041469,-480.0,0.00016821,2]
[382568917,1756671041479,-480.0,0.00016821,2]
[382568918,1756671041488,-480.0,0.00016821,2]
[382568919,1756671041498,-480.0,0.00016821,2]
[382568920,1756671041507,-603.95,0.00016821,2]
[382568921,1756671041516,-480.0,0.00016821,2]
[382568922,1756671041526,-480.0,0.00016821,2]
[382568923,1756671041535,-480.0,0.00016821,2]
[382568924,1756671041545,-707.41,0.00016821,2]
[382568925,1756671041554,-272.52744143,0.00016821,2]
[382568926,1756671041564,-543.00059376,0.00016821,2]
[382568927,1756671041574,-820.24,0.00016821,2]
[382568928,1756671041583,-480.0,0.00016821,2]
[382568929,1756671041593,-480.0,0.00016821,2]
[382568930,1756671041602,-480.0,0.00016821,2]
[382568931,1756671041611,-513.23,0.00016821,2]
[382568932,1756671041620,-587.65353831,0.00016821,2]
[382568933,1756671041630,-621.59548838,0.00016821,2]
[382568934,1756671041639,-480.0,0.00016821,2]
[382568935,1756671041649,-612.43,0.00016821,2]
[382568936,1756671041658,-823.57,0.00016821,2]
[382568937,1756671041668,-480.0,0.00016821,2]
[382568938,1756671041678,-995.41,0.00016821,2]
[382568939,1756671041688,-625.51,0.00016821,2]
[382568940,1756671041698,-1293.23,0.00016821,2]
[382568941,1756671041707,-267.69012047,0.00016821,2]
[382568942,1756671041716,-1067.0,0.00016821,2]
[382568943,1756671041725,-480.0,0.00016821,2]
[382568944,1756671041735,-514.59,0.00016821,2]
[382568945,1756671041743,-515.04,0.00016821,2]
[382568946,1756671041752,-725.84,0.00016821,2]
[382568947,1756671041763,-480.0,0.00016821,2]
[382568948,1756671041772,-480.0,0.00016821,2]
[382568949,1756671041781,-486.39,0.00016821,2]
[382568950,1756671041790,-480.0,0.00016821,2]
[382568951,1756671041801,-480.0,0.00016821,2]
[382568952,1756671041810,-480.0,0.00016821,2]
[382568953,1756671041819,-480.0,0.00016821,2]
[382568954,1756671041829,-480.0,0.00016821,2]
[382568955,1756671041839,-480.0,0.00016821,2]
[382568956,1756671041849,-568.06,0.00016821,2]
[382568957,1756671041858,-480.0,0.00016821,2]
[382568958,1756671041868,-581.43,0.00016821,2]
[382568959,1756671041877,-480.0,0.00016821,2]
[382568960,1756671041887,-480.0,0.00016821,2]
[382568961,1756671041897,-480.0,0.00016821,2]
[382568962,1756671041906,-652.14,0.00016821,2]
[382568963,1756671041916,-548.02,0.00016821,2]
[382568964,1756671041926,-480.0,0.00016821,2]
[382568965,1756671041935,-480.0,0.00016827,2]
[382568966,1756671041944,-480.0,0.00016827,2]
[382568967,1756671041954,-893.93,0.00016827,2]
[382568968,1756671041962,-1051.96,0.00016827,2]
[382568969,1756671041972,-480.0,0.00016827,2]
[382568970,1756671041983,-500.0,0.00016828,2]
[382568971,1756671041993,-480.0,0.00016828,2]
[382568972,1756671042002,-903.33,0.00016828,2]
[382568973,1756671042012,-480.0,0.00016828,2]
[382568974,1756671042022,-480.0,0.00016828,2]
[382568975,1756671042031,-480.0,0.00016828,2]
[382568976,1756671042041,-482.0,0.00016828,2]
[382568977,1756671042051,-480.0,0.00016828,2]
[382568978,1756671042061,-480.0,0.00016828,2]
[382568979,1756671042071,-480.0,0.00016828,2]
[382568980,1756671042081,-480.0,0.00016828,2]
[382568981,1756671042090,-576.2,0.00016828,2]
[382568982,1756671042100,-480.0,0.00016828,2]
[382568983,1756671042109,-1328.69,0.00016828,2]
[382568984,1756671042119,-480.0,0.00016828,2]
[382568985,1756671042128,-480.0,0.00016828,2]
[382568986,1756671042137,-480.0,0.00016828,2]
[382568987,1756671042147,-486.61,0.00016828,2]
[382568988,1756671042157,-480.0,0.00016828,2]
[382568989,1756671042166,-480.0,0.00016828,2]
[382568990,1756671042177,-621.93,0.00016828,2]
[382568991,1756671042187,-716.06,0.00016828,2]
[382568992,1756671042197,-668.92,0.00016828,2]
[382568993,1756671042206,-480.0,0.00016828,2]
[382568994,1756671042216,-933.79,0.00016828,2]
[382568995,1756671042225,-994.72,0.00016828,2]
[382568996,1756671042236,-649.19,0.00016828,2]
[382568997,1756671042246,-742.31,0.00016828,2]
[382568998,1756671042256,-151.0,0.00016828,2]
[382568999,1756671042266,-151.0,0.00016828,2]
[382569000,1756671042277,-151.0,0.00016828,2]
[382569001,1756671042288,-151.0,0.00016828,2]
[382569002,1756671042298,-480.0,0.00016828,2]
[382569003,1756671042308,-480.0,0.00016828,2]
[382569004,1756671042322,-480.0,0.00016828,2]
[382569005,1756671042331,-480.0,0.00016828,2]
[382569006,1756671042342,-1478.23,0.00016828,2]
[382569007,1756671042351,-480.0,0.00016828,2]
[382569008,1756671042362,-480.0,0.00016828,2]
[382569009,1756671042372,-480.0,0.00016828,2]
[382569010,1756671042381,-325.97501638,0.00016828,2]
[382569011,1756671042391,-151.0,0.00016828,2]
[382569012,1756671042400,-151.0,0.00016828,2]
[382569013,1756671042410,-151.0,0.00016828,2]
[382569014,1756671042419,-151.0,0.00016828,2]
[382569015,1756671042428,-480.0,0.00016828,2]
[382569016,1756671042438,-151.0,0.00016828,2]
[382569018,1756671042447,-480.0,0.00016828,2]
[382569019,1756671042457,-151.0,0.00016828,2]
[382569022,1756671042466,-151.0,0.00016828,2]
[382569024,1756671042476,-151.0,0.00016828,2]
[382569026,1756671042486,-151.0,0.00016828,2]
[382569028,1756671042495,-151.0,0.00016828,2]
[382569030,1756671042505,-176.48709,0.00016828,2]
[382569032,1756671042514,-151.0,0.00016828,2]
[382569033,1756671042524,-788.99,0.00016828,2]
[382569034,1756671042534,-528.44,0.00016828,2]
[382569035,1756671042544,-151.0,0.00016828,2]
[382569037,1756671042553,-657.92,0.00016828,2]
[382569038,1756671042563,-480.0,0.00016828,2]
[382569039,1756671042572,-480.0,0.00016828,2]
[382569041,1756671042582,-257.005188,0.00016828,2]
[382569043,1756671042591,-257.005188,0.00016828,2]
[382569044,1756671042600,-257.005188,0.00016828,2]
[382569045,1756671042609,-480.0,0.00016828,2]
[382569046,1756671042619,-257.005188,0.00016828,2]
[382569047,1756671042629,-480.0,0.00016828,2]
[382569048,1756671042638,-1131.2,0.00016828,2]
[382569049,1756671042648,-287.782845,0.00016828,2]
[382569050,1756671042657,-151.0,0.00016828,2]
[382569051,1756671042667,-151.0,0.00016828,2]
[382569052,1756671042676,-151.0,0.00016828,2]
[382569053,1756671042685,-151.0,0.00016828,2]
[382569054,1756671042694,-151.0,0.00016828,2]
[382569055,1756671042703,-151.0,0.00016828,2]
[382569056,1756671042713,-596.78,0.00016828,2]
[382569057,1756671042723,-480.0,0.00016828,2]
[382569058,1756671042732,-480.0,0.00016828,2]
[382569059,1756671042742,-865.32,0.00016828,2]
[382569060,1756671042751,-480.0,0.00016828,2]
[382569061,1756671042762,-603.5,0.00016828,2]
[382569062,1756671042771,-480.0,0.00016828,2]
[382569063,1756671042781,-480.0,0.00016828,2]
[382569064,1756671042791,-480.0,0.00016828,2]
[382569065,1756671042800,-151.0,0.00016828,2]
[382569066,1756671042810,-890.22,0.00016828,2]
[382569067,1756671042819,-480.0,0.00016828,2]
[382569068,1756671042828,-1858.6,0.00016828,2]
[382569069,1756671042838,-151.0,0.00016828,2]
[382569070,1756671042848,-480.0,0.00016828,2]
[382569071,1756671042857,-794.95,0.00016828,2]
[382569072,1756671042866,-480.0,0.00016828,2]
[382569073,1756671042875,-480.0,0.00016828,2]
[382569074,1756671042884,-480.0,0.00016828,2]
[382569075,1756671042894,-743.62,0.00016828,2]
[382569076,1756671042903,-151.0,0.00016828,2]
[382569077,1756671042912,-480.0,0.00016828,2]
[382569078,1756671042921,-276.06647076,0.00016828,2]
[382569079,1756671042930,-861.63,0.00016828,2]
[382569080,1756671042940,-154.702727,0.00016828,2]
[382569081,1756671042949,-480.0,0.00016828,2]
[382569082,1756671042959,-480.0,0.00016828,2]
[382569083,1756671042968,-480.0,0.00016828,2]
[382569084,1756671042978,-480.0,0.00016828,2]
[382569085,1756671042987,-772.61,0.00016828,2]
[382569086,1756671042997,-1085.76,0.00016828,2]
[382569087,1756671043007,-1063.3,0.00016828,2]
[382569088,1756671043017,-480.0,0.00016828,2]
[382569089,1756671043026,-151.0,0.00016828,2]
[382569090,1756671043036,-210.46874851,0.00016828,2]
[382569091,1756671043046,-823.6,0.00016828,2]
[382569092,1756671043055,-862.84,0.00016828,2]
[382569093,1756671043064,-480.0,0.00016828,2]
[382569094,1756671043074,-151.0,0.00016828,2]
[382569095,1756671043084,-151.0,0.00016828,2]
[382569096,1756671043094,-480.0,0.00016828,2]
[382569097,1756671043104,-151.0,0.00016828,2]
[382569098,1756671043113,-151.0,0.00016828,2]
[382569099,1756671043122,-480.0,0.00016828,2]
[382569100,1756671043132,-480.0,0.00016828,2]
[382569101,1756671043142,-480.0,0.00016828,2]
[382569102,1756671043151,-650.61,0.00016828,2]
[382569103,1756671043163,-836.43,0.00016828,2]
[382569104,1756671043173,-595.65,0.00016828,2]
[382569105,1756671043184,-480.0,0.00016828,2]
[382569106,1756671043194,-151.0,0.00016828,2]
[382569107,1756671043204,-480.0,0.00016828,2]
[382569108,1756671043214,-151.0,0.00016828,2]
[382569109,1756671043223,-151.0,0.00016828,2]
[382569110,1756671043233,-151.0,0.00016828,2]
[382569111,1756671043243,-480.0,0.00016828,2]
[382569112,1756671043255,-480.0,0.00016828,2]
[382569114,1756671043265,-480.0,0.00016828,2]
[382569116,1756671043274,-270.445229,0.00016828,2]
[382569118,1756671043284,-151.0,0.00016828,2]
[382569121,1756671043293,-151.0,0.00016828,2]
[382569124,1756671043302,-634.26,0.00016828,2]
[382569127,1756671043314,-501.49,0.00016828,2]
[382569130,1756671043323,-480.0,0.00016828,2]
[382569132,1756671043332,-151.0,0.00016828,2]
[382569133,1756671043343,-480.0,0.00016828,2]
[382569136,1756671043353,-151.0,0.00016828,2]
[382569138,1756671043363,-788.05,0.00016828,2]
[382569140,1756671043372,-151.0,0.00016828,2]
[382569142,1756671043382,-480.0,0.00016828,2]
[382569144,1756671043392,-151.0,0.00016828,2]
[382569145,1756671043401,-480.0,0.00016828,2]
[382569146,1756671043411,-541.68,0.00016828,2]
[382569147,1756671043420,-151.0,0.00016828,2]
[382569148,1756671043429,-1658.79,0.00016828,2]
[382569149,1756671043438,-151.0,0.00016828,2]
[382569150,1756671043447,-151.0,0.00016828,2]
[382569151,1756671043456,-192.182341,0.00016828,2]
[382569152,1756671043465,-151.0,0.00016828,2]
[382569153,1756671043475,-843.95,0.00016828,2]
[382569154,1756671043484,-192.182341,0.00016828,2]
[382569155,1756671043493,-505.2,0.00016828,2]
[382569156,1756671043502,-192.182341,0.00016828,2]
[382569157,1756671043513,-192.182341,0.00016828,2]
[382569158,1756671043523,-480.0,0.00016828,2]
[382569159,1756671043533,-480.0,0.00016828,2]
[382569160,1756671043543,-1708.0,0.00016828,2]
[382569161,1756671043552,-576.38419063,0.00016856,2]
[382569162,1756671043562,-373.13586244,0.00016873,2]
[382569163,1756671043572,-500.0,0.00016873,2]
[382569164,1756671043581,-501.21878673,0.00016873,2]
[382569165,1756671043591,-162.28722497,0.00016873,2]
[382569166,1756671043600,-500.0,0.00016873,2]
[382569167,1756671043610,-500.0,0.00016873,2]
[382569168,1756671043619,-500.0,0.00016873,2]
[382569169,1756671043628,-500.0,0.00016873,2]
[382569170,1756671043637,-608.87160144,0.00016873,2]
[382569171,1756671043648,-500.0,0.00016873,2]
[382569172,1756671043657,-500.0,0.00016873,2]
[382569173,1756671043667,-500.0,0.00016873,2]
[382569174,1756671043676,-500.0,0.00016873,2]
[382569175,1756671043685,-213.6364315,0.00016873,2]
[382569176,1756671043695,-500.0,0.00016873,2]
[382569177,1756671043704,-500.0,0.00016873,2]
[382569178,1756671043713,-500.0,0.00016873,2]
[382569179,1756671043723,-500.0,0.00016873,2]
[382569180,1756671043732,-500.0,0.00016873,2]
[382569181,1756671043741,-500.0,0.00016873,2]
[382569182,1756671043751,-500.0,0.00016873,2]
[382569183,1756671043761,-500.0,0.00016873,2]
[382569184,1756671043770,-252.29239426,0.00016873,2]
[382569185,1756671043779,-500.0,0.00016873,2]
[382569186,1756671043790,-500.0,0.00016873,2]
[382569187,1756671043799,-500.0,0.00016873,2]
[382569189,1756671043808,-500.0,0.00016873,2]
[382569191,1756671043817,-500.0,0.00016873,2]
[382569193,1756671043826,-500.0,0.00016873,2]
[382569195,1756671043835,-194.94272003,0.00016873,2]
[382569197,1756671043845,-500.0,0.00016873,2]
[382569199,1756671043854,-500.0,0.00016873,2]
[382569201,1756671043864,-500.0,0.00016873,2]
[382569202,1756671043873,-500.0,0.00016873,2]
[382569204,1756671043883,-500.0,0.00016873,2]
[382569206,1756671043893,-500.0,0.00016873,2]
[382569208,1756671043902,-213.79428328,0.00016873,2]
[382569210,1756671043912,-524.36340573,0.00016873,2]
[382569212,1756671043921,-340.29691415,0.00016873,2]
[382569214,1756671043930,-151.0,0.00016873,2]
[382569216,1756671043939,-151.0,0.00016873,2]
[382569218,1756671043949,-151.0,0.00016873,2]
[382569220,1756671043958,-151.0,0.00016873,2]
[382569222,1756671043969,-300.0,0.00016874,2]
[382569224,1756671043979,-300.0,0.00016874,2]
[382569226,1756671043988,-300.0,0.00016874,2]
[382569228,1756671043997,-300.0,0.00016874,2]
[382569230,1756671044007,-300.0,0.00016874,2]
[382569232,1756671044015,-300.0,0.00016874,2]
[382569234,1756671044025,-300.0,0.00016874,2]
[382569236,1756671044034,-300.0,0.00016874,2]
[382569238,1756671044043,-300.0,0.00016874,2]
[382569240,1756671044053,-300.0,0.00016874,2]
[382569242,1756671044063,-300.0,0.00016874,2]
[382569244,1756671044073,-300.0,0.00016874,2]
[382569246,1756671044082,-300.0,0.00016874,2]
[382569248,1756671044092,-300.0,0.00016874,2]
[382569250,1756671044101,-300.0,0.00016874,2]
[382569252,1756671044111,-600.0,0.00016874,2]
[382569254,1756671044120,-151.0,0.00016874,2]
[382569256,1756671044130,-151.0,0.00016874,2]
[382569258,1756671044139,-225.188496,0.00016874,2]
[382569260,1756671044149,-151.0,0.00016874,2]
[382569262,1756671044159,-151.0,0.00016874,2]
[382569264,1756671044168,-151.0,0.00016874,2]
[382569266,1756671044177,-151.0,0.00016874,2]
[382569268,1756671044187,-151.0,0.00016874,2]
[382569270,1756671044197,-151.0,0.00016874,2]
[382569272,1756671044206,-151.0,0.00016874,2]
[382569274,1756671044215,-151.0,0.00016874,2]
[382569276,1756671044224,-151.0,0.00016874,2]
[382569278,1756671044234,-151.0,0.00016874,2]
[382569280,1756671044244,-174.777888,0.00016874,2]
[382569282,1756671044253,-420.0,0.00016884,2]
[382569284,1756671044263,-3809.13290678,0.00016885,2]
[382569286,1756671044272,-4077.20571408,0.00016885,2]
[382569288,1756671044282,-7241.11734821,0.00016885,2]
[382569290,1756671044291,-1516.11905889,0.00016885,2]
[382569292,1756671044300,-3411.26788251,0.00016885,2]
[382569294,1756671044312,-6058.41175934,0.00016885,2]
[382569296,1756671044324,-184.0,0.00016892,2]
[382569298,1756671044333,-189.159,0.00016896,2]
[382569300,1756671044345,-151.0,0.000169,2]
[382569302,1756671044355,-151.0,0.000169,2]
[382569303,1756671044364,-151.0,0.000169,2]
[382569304,1756671044374,-184.0,0.00016907,2]
[382569306,1756671044384,-576.38419063,0.00016929,2]
[382569308,1756671044395,-697.0,0.00016956,2]
[382569309,1756671044405,-298.881,0.0001697,2]
[382569310,1756671044414,-673.08140919,0.00016976,2]
[382569312,1756671044424,-654.62,0.00016982,2]
[382569314,1756671044433,-1000.0,0.00016992,2]
[382569315,1756671044442,-420.0,0.00016995,2]
[382569316,1756671044451,-433.43188615,0.00017,2]
[382569317,1756671044461,-151.0,0.00017,2]
[382569318,1756671044471,-151.0,0.00017,2]
[382569319,1756671044481,-815.1565652,0.00017,2]
[382569320,1756671044490,-576.38419063,0.00017002,2]
[382569321,1756671044499,-11364.23969824,0.00017012,2]
[382569322,1756671044509,-160.0,0.00017016,2]
[382569323,1756671044519,-160.0,0.00017016,2]
[382569324,1756671044528,-530.02580203,0.00017016,2]
[382569325,1756671044539,-160.0,0.00017016,2]
[382569326,1756671044548,-160.0,0.00017016,2]
[382569327,1756671044557,-417.15472785,0.00017016,2]
[382569328,1756671044567,-160.0,0.00017016,2]
[382569329,1756671044577,-160.0,0.00017016,2]
[382569330,1756671044586,-217.4012883,0.00017016,2]
[382569331,1756671044596,-160.0,0.00017016,2]
[382569332,1756671044605,-160.0,0.00017016,2]
[382569333,1756671044615,-845.95363151,0.00017016,2]
[382569334,1756671044624,-232.78794292,0.00017016,2]
[382569335,1756671044634,-425.75173308,0.00017016,2]